lending/lending_fUSD_20240401
["ID","MTS","AMOUNT","RATE_DAILY","PERIOD"]
[321236143,1712007044275,-500.0,0.00060621,120]
[321236144,1712007044284,-1439.68,0.00060621,120]
[321236145,1712007044293,-500.0,0.00060621,120]
[321236146,1712007044302,-500.0,0.00060621,120]
[321236147,1712007044311,-500.0,0.00060621,120]
[321236148,1712007044320,-500.0,0.00060621,120]
[321236149,1712007044329,-500.0,0.00060621,120]
[321236150,1712007044338,-770.39,0.00060621,120]
[321236151,1712007044346,-500.0,0.00060621,120]
[321236152,1712007044355,-840.85,0.00060621,120]
[321236153,1712007044364,-641.38,0.00060621,120]
[321236154,1712007044373,-595.69,0.00060621,120]
[321236155,1712007044382,-643.95,0.00060621,120]
[321236156,1712007044391,-500.0,0.00060621,120]
[321236157,1712007044401,-1999.43,0.00060621,120]
[321236158,1712007044411,-500.0,0.00060621,120]
[321236159,1712007044420,-500.0,0.00060621,120]
[321236160,1712007044430,-747.29,0.00060621,120]
[321236161,1712007044438,-500.0,0.00060621,120]
[321236162,1712007044448,-500.0,0.00060621,120]
[321236163,1712007044457,-500.0,0.00060621,120]
[321236164,1712007044466,-500.0,0.00060621,120]
[321236165,1712007044475,-500.0,0.00060621,120]
[321236166,1712007044484,-619.07,0.00060621,120]
[321236167,1712007044493,-582.76,0.00060621,120]
[321236168,1712007044502,-500.0,0.00060621,120]
[321236169,1712007044511,-637.22,0.00060621,120]
[321236170,1712007044520,-500.0,0.00060621,120]
[321236171,1712007044529,-500.0,0.00060621,120]
[321236172,1712007044539,-500.0,0.00060621,120]
[321236173,1712007044548,-500.0,0.00060621,120]
[321236174,1712007044557,-2980.96,0.00060621,120]
[321236175,1712007044567,-566.6,0.00060621,120]
[321236176,1712007044577,-618.02,0.00060621,120]
[321236177,1712007044586,-717.37,0.00060621,120]
[321236178,1712007044595,-500.0,0.00060621,120]
[321236179,1712007044604,-500.0,0.00060621,120]
[321236180,1712007044613,-500.0,0.00060621,120]
[321236181,1712007044622,-615.76,0.00060621,120]
[321236182,1712007044631,-945.0,0.00060621,120]
[321236183,1712007044640,-500.0,0.00060621,120]
[321236184,1712007044649,-1569.99,0.00060621,120]
[321236185,1712007044658,-2089.19,0.00060621,120]
[321236186,1712007044667,-500.0,0.00060621,120]
[321236187,1712007044676,-500.0,0.00060621,120]
[321236188,1712007044685,-500.0,0.00060621,120]
[321236189,1712007044694,-500.0,0.00060621,120]
[321236190,1712007044703,-500.0,0.00060621,120]
[321236191,1712007044712,-707.64,0.00060621,120]
[321236192,1712007044721,-697.77,0.00060621,120]
[321236193,1712007044730,-554.45,0.00060621,120]
[321236194,1712007044739,-500.0,0.00060621,120]
[321236195,1712007044749,-544.08,0.00060621,120]
[321236196,1712007044758,-616.52,0.00060621,120]
[321236197,1712007044767,-547.62,0.00060621,120]
[321236198,1712007044777,-500.0,0.00060621,120]
[321236199,1712007044786,-1000.0,0.00060621,120]
[321236200,1712007044795,-872.24,0.00060621,120]
[321236201,1712007044804,-500.0,0.00060621,120]
[321236202,1712007044813,-643.07,0.00060621,120]
[321236203,1712007044822,-757.38,0.00060621,120]
[321236204,1712007044831,-500.0,0.00060621,120]
[321236205,1712007044841,-500.0,0.00060621,120]
[321236206,1712007044850,-615.74,0.00060621,120]
[321236207,1712007044861,-500.0,0.00060621,120]
[321236208,1712007044870,-657.88,0.00060621,120]
[321236209,1712007044879,-523.84,0.00060621,120]
[321236210,1712007044888,-500.0,0.00060621,120]
[321236211,1712007044897,-500.0,0.00060621,120]
[321236212,1712007044906,-500.0,0.00060621,120]
[321236213,1712007044915,-500.0,0.00060621,120]
[321236214,1712007044924,-500.0,0.00060621,120]
[321236215,1712007044933,-500.0,0.00060621,120]
[321236216,1712007044942,-500.0,0.00060621,120]
[321236217,1712007044951,-519.38,0.00060621,120]
[321236218,1712007044961,-500.0,0.00060621,120]
[321236219,1712007044970,-500.0,0.00060621,120]
[321236220,1712007044979,-500.0,0.00060621,120]
[321236221,1712007044989,-500.0,0.00060621,120]
[321236222,1712007044997,-645.26,0.00060621,120]
[321236223,1712007045006,-500.0,0.00060621,120]
[321236224,1712007045015,-500.0,0.00060621,120]
[321236225,1712007045024,-1320.38,0.00060621,120]
[321236226,1712007045033,-1355.63,0.00060621,120]
[321236227,1712007045042,-500.0,0.00060621,120]
[321236228,1712007045051,-500.0,0.00060621,120]
[321236229,1712007045061,-500.0,0.00060621,120]
[321236230,1712007045070,-500.0,0.00060621,120]
[321236231,1712007045079,-736.97,0.00060621,120]
[321236232,1712007045088,-1254.6,0.00060621,120]
[321236233,1712007045102,-1981.88,0.00060621,120]
[321236234,1712007045111,-500.0,0.00060621,120]
[321236235,1712007045121,-500.0,0.00060621,120]
[321236236,1712007045130,-500.0,0.00060621,120]
[321236237,1712007045141,-757.56,0.00060621,120]
[321236238,1712007045151,-500.0,0.00060621,120]
[321236239,1712007045160,-500.0,0.00060621,120]
[321236240,1712007045170,-611.37,0.00060621,120]
[321236241,1712007045179,-500.0,0.00060621,120]
[321236242,1712007045189,-500.0,0.00060621,120]
[321236243,1712007045199,-191.2,0.00060621,7]
[321236244,1712007045208,-500.0,0.00060621,120]
[321236245,1712007045218,-609.0,0.00060621,120]
[321236246,1712007045227,-500.0,0.00060621,120]
[321236247,1712007045236,-511.68,0.00060621,120]
[321236248,1712007045246,-500.0,0.00060621,120]
[321236249,1712007045256,-500.0,0.00060621,120]
[321236250,1712007045266,-500.0,0.00060621,120]
[321236251,1712007045275,-610.8,0.00060621,120]
[321236252,1712007045284,-1241.58,0.00060621,120]
[321236253,1712007045294,-500.0,0.00060621,120]
[321236254,1712007045303,-500.0,0.00060692,2]
[321236255,1712007045311,-410.0528,0.00060692,2]
[321236256,1712007045320,-1000.0,0.00060692,2]
[321236257,1712007045329,-1000.0,0.00060692,2]
[321236258,1712007045339,-1000.0,0.00060692,2]
[321236259,1712007045348,-1000.0,0.00060692,2]
[321236260,1712007045358,-1000.0,0.00060692,2]
[321236261,1712007045367,-1000.0,0.00060692,2]
[321236262,1712007045376,-1000.0,0.00060692,2]
[321236263,1712007045386,-1000.0,0.00060692,2]
[321236264,1712007045395,-1000.0,0.00060692,2]
[321236265,1712007045404,-1000.0,0.00060692,2]
[321236266,1712007045413,-1000.0,0.00060692,2]
[321236267,1712007045423,-1000.0,0.00060692,2]
[321236268,1712007045432,-1000.0,0.00060692,2]
[321236269,1712007045441,-1000.0,0.00060692,2]
[321236270,1712007045451,-1000.0,0.00060692,2]
[321236271,1712007045460,-1000.0,0.00060692,2]
[321236272,1712007045469,-1000.0,0.00060692,2]
[321236273,1712007045478,-1000.0,0.00060692,2]
[321236274,1712007045487,-1000.0,0.00060692,2]
[321236275,1712007045497,-1000.0,0.00060692,2]
[321236276,1712007045506,-1000.0,0.00060692,2]
[321236277,1712007045515,-1000.0,0.00060692,2]
[321236278,1712007045524,-1071.8497,0.00060692,2]
[321236279,1712007045533,-500.0,0.00060692,2]
[321236280,1712007045543,-500.0,0.00060692,2]
[321236281,1712007045552,-500.0,0.00060692,2]
[321236282,1712007045561,-500.0,0.00060692,2]
[321236283,1712007045571,-500.0,0.00060692,2]
[321236284,1712007045580,-500.0,0.00060692,2]
[321236285,1712007045590,-500.0,0.00060692,2]
[321236286,1712007045599,-500.0,0.00060692,2]
[321236287,1712007045609,-500.0,0.00060692,2]
[321236288,1712007045619,-565.1923,0.00060692,2]
[321236289,1712007045628,-327.91227008,0.00060699,7]
[321236290,1712007045638,-1000.0,0.000607,7]
[321236291,1712007045647,-1500.0,0.00060728,30]
[321236292,1712007045656,-1500.0,0.00060732,30]
[321236293,1712007045665,-150.0,0.00060732,30]
[321236294,1712007045675,-150.0,0.00060734,30]
[321236295,1712007045684,-150.0,0.0006074,30]
[321236297,1712007045694,-150.0,0.0006074,30]
[321236298,1712007045703,-304.29307054,0.00060747,30]
[321236299,1712007045712,-150.0,0.00060752,30]
[321236300,1712007045721,-150.0,0.00060754,30]
[321236301,1712007045731,-1500.0,0.00060755,30]
[321236302,1712007045740,-1500.0,0.00060758,30]
[321236303,1712007045749,-300.0,0.00060762,30]
[321236304,1712007045759,-150.0,0.00060763,30]
[321236305,1712007045768,-150.0,0.00060766,30]
[321236306,1712007045777,-150.0,0.0006078,30]
[321236307,1712007045786,-150.0,0.00060785,30]
[321236308,1712007045796,-150.0,0.00060793,30]
[321236309,1712007045804,-4139.49768947,0.000608,40]
[321236310,1712007045813,-1670.345442,0.000608,2]
[321236311,1712007045822,-5022.6564,0.000608,30]
[321236312,1712007045831,-150.0,0.00060801,30]
[321236313,1712007045839,-162.98661852,0.00060801,120]
[321236314,1712007045848,-1500.0,0.00060809,30]
[321236315,1712007045858,-155.55297408,0.00060809,120]
[321236316,1712007045867,-150.0,0.00060813,30]
[321236317,1712007045877,-150.0,0.00060818,30]
[321236318,1712007045886,-150.0,0.00060823,30]
[321236319,1712007045896,-150.0,0.00060826,30]
[321236320,1712007045905,-150.0,0.00060843,30]
[321236321,1712007045914,-1500.0,0.00060848,30]
[321236322,1712007045924,-150.0,0.00060852,30]
[321236323,1712007045933,-150.0,0.0006086,30]
[321236324,1712007045942,-150.0,0.00060868,30]
[321236325,1712007045953,-150.0,0.0006087,30]
[321236326,1712007045962,-1500.0,0.00060872,30]
[321236327,1712007045972,-150.0,0.00060873,30]
[321236328,1712007045982,-150.0,0.00060873,30]
[321236329,1712007045991,-150.0,0.00060889,30]
[321236330,1712007046001,-500.0,0.00060894,120]
[321236331,1712007046010,-680.46,0.00060894,120]
[321236332,1712007046019,-599.81,0.00060894,120]
[321236333,1712007046029,-519.19,0.00060894,120]
[321236334,1712007046038,-601.57,0.00060894,120]
[321236335,1712007046047,-513.33,0.00060894,120]
[321236336,1712007046057,-596.47,0.00060894,120]
[321236337,1712007046066,-500.0,0.00060894,120]
[321236338,1712007046076,-3391.36,0.00060894,120]
[321236339,1712007046086,-1369.95,0.00060894,120]
[321236340,1712007046100,-500.0,0.00060894,120]
[321236341,1712007046109,-687.98,0.00060894,120]
[321236342,1712007046119,-1071.64,0.00060894,120]
[321236343,1712007046129,-500.0,0.00060894,120]
[321236344,1712007046139,-1065.74,0.00060894,120]
[321236345,1712007046148,-500.0,0.00060894,120]
[321236346,1712007046158,-500.0,0.00060894,120]
[321236347,1712007046169,-1349.08,0.00060894,120]
[321236348,1712007046181,-500.0,0.00060894,120]
[321236349,1712007046190,-500.0,0.00060894,120]
[321236350,1712007046200,-748.08,0.00060894,120]
[321236351,1712007046211,-500.0,0.00060894,120]
[321236352,1712007046221,-711.74,0.00060894,120]
[321236353,1712007046231,-500.0,0.00060894,120]
[321236354,1712007046240,-500.0,0.00060894,120]
[321236355,1712007046249,-500.0,0.00060894,120]
[321236356,1712007046259,-500.0,0.00060894,120]
[321236357,1712007046269,-500.0,0.00060894,120]
[321236358,1712007046279,-500.0,0.00060894,120]
[321236359,1712007046289,-500.0,0.00060894,120]
[321236360,1712007046298,-500.0,0.00060894,120]
[321236361,1712007046308,-517.59,0.00060894,120]
[321236362,1712007046317,-500.0,0.00060894,120]
[321236363,1712007046327,-500.0,0.00060894,120]
[321236364,1712007046337,-343.32,0.00060894,120]
[321236365,1712007046347,-573.1,0.00060894,120]
[321236366,1712007046356,-635.65,0.00060895,120]
[321236367,1712007046366,-500.0,0.00060895,120]
[321236368,1712007046375,-552.16,0.00060895,120]
[321236369,1712007046384,-221.01,0.00060895,120]
[321236370,1712007046394,-645.29,0.00060895,120]
[321236371,1712007046402,-500.0,0.00060895,120]
[321236372,1712007046412,-500.0,0.00060895,120]
[321236374,1712007046421,-500.0,0.00060895,120]
[321236376,1712007046430,-500.0,0.00060895,120]
[321236377,1712007046440,-500.0,0.00060895,120]
[321236378,1712007046448,-500.0,0.00060895,120]
[321236379,1712007046457,-500.0,0.00060895,120]
[321236380,1712007046569,-500.0,0.00060895,120]
[321236381,1712007046594,-500.0,0.00060895,120]
[321236382,1712007046618,-3227.39,0.00060895,120]
[321236383,1712007046646,-500.0,0.00060895,120]
[321236384,1712007046677,-1339.37,0.00060895,120]
[321236385,1712007046704,-500.0,0.00060895,120]
[321236386,1712007046714,-500.0,0.00060895,120]
[321236387,1712007046723,-456.88,0.00060895,120]
[321236388,1712007046732,-192.46,0.00060895,120]
[321236389,1712007046743,-500.0,0.00060895,120]
[321236390,1712007046751,-500.0,0.00060895,120]
[321236391,1712007046760,-812.22,0.00060895,120]
[321236392,1712007046770,-643.9,0.00060895,120]
[321236393,1712007046779,-485.94,0.00060895,120]
[321236394,1712007046789,-500.0,0.00060895,120]
[321236395,1712007046799,-500.0,0.00060895,120]
[321236396,1712007046809,-5317.05,0.00060895,120]
[321236397,1712007046818,-500.0,0.00060895,120]
[321236398,1712007046827,-202.5,0.00060895,120]
[321236399,1712007046836,-515.11,0.00060895,120]
[321236400,1712007046845,-221.44,0.00060895,120]
[321236401,1712007046855,-279.44,0.00060895,120]
[321236402,1712007046865,-500.0,0.00060895,120]
[321236403,1712007046874,-500.0,0.00060895,120]
[321236404,1712007046884,-164.06,0.00060895,120]
[321236405,1712007046893,-1632.83,0.00060895,120]
[321236406,1712007046902,-667.28,0.00060895,120]
[321236407,1712007046912,-500.0,0.00060895,120]
[321236408,1712007046921,-500.0,0.00060895,120]
[321236409,1712007046930,-500.0,0.00060895,120]
[321236410,1712007046939,-593.19,0.00060895,120]
[321236411,1712007046948,-500.0,0.00060895,120]
[321236412,1712007046959,-4315.02,0.00060895,120]
[321236413,1712007046968,-500.0,0.00060895,120]
[321236414,1712007046978,-500.0,0.00060895,120]
[321236415,1712007046987,-431.96,0.00060895,120]
[321236416,1712007046997,-500.0,0.00060895,120]
[321236417,1712007047006,-500.0,0.00060895,120]
[321236418,1712007047016,-2739.33,0.00060895,120]
[321236419,1712007047025,-500.0,0.00060895,120]
[321236420,1712007047034,-500.0,0.00060895,120]
[321236421,1712007047043,-500.0,0.00060895,120]
[321236422,1712007047052,-500.0,0.00060895,120]
[321236423,1712007047062,-500.0,0.00060895,120]
[321236424,1712007047071,-500.0,0.00060895,120]
[321236425,1712007047082,-500.0,0.00060895,120]
[321236426,1712007047096,-551.72,0.00060895,120]
[321236427,1712007047106,-7145.39,0.00060895,120]
[321236428,1712007047116,-500.0,0.00060895,120]
[321236429,1712007047127,-500.0,0.00060895,120]
[321236430,1712007047137,-500.0,0.00060895,120]
[321236431,1712007047146,-168.7,0.00060895,120]
[321236432,1712007047156,-896.45,0.00060895,120]
[321236433,1712007047165,-500.0,0.00060895,120]
[321236434,1712007047175,-512.48,0.00060895,120]
[321236435,1712007047185,-500.0,0.00060895,120]
[321236436,1712007047194,-526.89,0.00060895,120]
[321236437,1712007047204,-500.0,0.00060895,120]
[321236438,1712007047213,-245.72,0.00060895,120]
[321236439,1712007047223,-780.72,0.00060895,120]
[321236440,1712007047232,-500.0,0.00060895,120]
[321236441,1712007047242,-500.0,0.00060895,120]
[321236442,1712007047252,-1039.33,0.00060895,21]
[321236443,1712007047261,-500.0,0.00060895,120]
[321236444,1712007047271,-648.52,0.00060895,120]
[321236445,1712007047280,-500.0,0.00060895,120]
[321236446,1712007047290,-272.94,0.00060895,120]
[321236447,1712007047299,-820.79,0.00060895,120]
[321236448,1712007047308,-500.0,0.00060895,120]
[321236449,1712007047317,-8275.33,0.00060895,120]
[321236450,1712007047327,-500.0,0.00060895,120]
[321236451,1712007047336,-500.0,0.00060895,120]
[321236452,1712007047345,-500.0,0.00060895,120]
[321236453,1712007047355,-500.0,0.00060895,120]
[321236454,1712007047364,-505.47,0.00060895,120]
[321236455,1712007047373,-678.99,0.00060895,120]
[321236456,1712007047382,-500.0,0.00060895,120]
[321236457,1712007047391,-500.0,0.00060895,120]
[321236458,1712007047400,-291.68,0.00060895,120]
[321236459,1712007047409,-500.0,0.00060895,120]
[321236460,1712007047418,-1439.68,0.00060895,120]
[321236461,1712007047427,-500.0,0.00060895,120]
[321236462,1712007047436,-500.0,0.00060895,120]
[321236463,1712007047445,-508.56,0.00060895,120]
[321236464,1712007047454,-472.36,0.00060895,120]
[321236465,1712007047463,-500.0,0.00060895,120]
[321236466,1712007047473,-770.39,0.00060895,120]
[321236467,1712007047483,-500.0,0.00060895,120]
[321236468,1712007047492,-840.85,0.00060895,120]
[321236469,1712007047502,-595.69,0.00060895,120]
[321236470,1712007047512,-643.95,0.00060895,120]
[321236471,1712007047521,-500.0,0.00060895,120]
[321236472,1712007047530,-1999.43,0.00060895,120]
[321236473,1712007047539,-500.0,0.00060895,120]
[321236474,1712007047548,-500.0,0.00060895,120]
[321236475,1712007047558,-747.29,0.00060895,120]
[321236476,1712007047567,-500.0,0.00060895,120]
[321236477,1712007047577,-500.0,0.00060895,120]
[321236478,1712007047586,-500.0,0.00060895,120]
[321236479,1712007047596,-500.0,0.00060895,120]
[321236480,1712007047605,-500.0,0.00060895,120]
[321236481,1712007047615,-619.07,0.00060895,120]
[321236482,1712007047625,-582.76,0.00060895,120]
[321236483,1712007047634,-500.0,0.00060895,120]
[321236484,1712007047643,-500.0,0.00060895,120]
[321236485,1712007047654,-500.0,0.00060895,120]
[321236486,1712007047663,-500.0,0.00060895,120]
[321236487,1712007047673,-500.0,0.00060895,120]
[321236488,1712007047682,-2980.96,0.00060895,120]
[321236489,1712007047690,-566.6,0.00060895,120]
[321236490,1712007047699,-618.02,0.00060895,120]
[321236491,1712007047709,-717.37,0.00060895,120]
[321236492,1712007047718,-500.0,0.00060895,120]
[321236493,1712007047727,-500.0,0.00060895,120]
[321236494,1712007047737,-288.34,0.00060895,120]
[321236495,1712007047747,-945.0,0.00060895,120]
[321236496,1712007047755,-1569.99,0.00060895,120]
[321236497,1712007047766,-500.0,0.00060895,120]
[321236498,1712007047775,-2089.19,0.00060895,120]
[321236499,1712007047785,-502.8,0.00060895,120]
[321236500,1712007047794,-500.0,0.00060895,120]
[321236501,1712007047804,-500.0,0.00060895,120]
[321236502,1712007047813,-500.0,0.00060895,120]
[321236503,1712007047823,-437.4,0.00060895,120]
[321236504,1712007047833,-707.64,0.00060895,120]
[321236505,1712007047843,-697.77,0.00060895,120]
[321236506,1712007047852,-554.45,0.00060895,120]
[321236507,1712007047862,-500.0,0.00060895,120]
[321236508,1712007047871,-544.08,0.00060895,120]
[321236509,1712007047880,-616.52,0.00060895,120]
[321236510,1712007047889,-500.0,0.00060895,120]
[321236511,1712007047899,-872.24,0.00060895,120]
[321236512,1712007047908,-500.0,0.00060895,120]
[321236513,1712007047918,-643.07,0.00060895,120]
[321236514,1712007047928,-757.38,0.00060895,120]
[321236515,1712007047937,-500.0,0.00060895,120]
[321236516,1712007047947,-500.0,0.00060895,120]
[321236517,1712007047956,-615.74,0.00060895,120]
[321236518,1712007047965,-500.0,0.00060895,120]
[321236519,1712007047974,-657.88,0.00060895,120]
[321236520,1712007047984,-523.84,0.00060895,120]
[321236521,1712007047994,-499.0,0.00060895,120]
[321236522,1712007048004,-500.0,0.00060895,120]
[321236523,1712007048014,-500.0,0.00060895,120]
[321236524,1712007048023,-289.7,0.00060895,120]
[321236525,1712007048033,-500.0,0.00060895,120]
[321236526,1712007048043,-500.0,0.00060895,120]
[321236527,1712007048052,-500.0,0.00060895,120]
[321236528,1712007048061,-500.0,0.00060895,120]
[321236529,1712007048071,-500.0,0.00060895,120]
[321236530,1712007048080,-500.0,0.00060895,120]
[321236531,1712007048090,-500.0,0.00060895,120]
[321236532,1712007048102,-500.0,0.00060895,120]
[321236533,1712007048111,-155.04,0.00060895,120]
[321236534,1712007048121,-1320.38,0.00060895,120]
[321236535,1712007048131,-1355.63,0.00060895,120]
[321236536,1712007048139,-500.0,0.00060895,120]
[321236537,1712007048149,-225.34,0.00060895,120]
[321236538,1712007048158,-500.0,0.00060895,120]
[321236539,1712007048168,-153.12,0.00060895,120]
[321236540,1712007048178,-736.97,0.00060895,120]
[321236541,1712007048187,-1254.6,0.00060895,120]
[321236542,1712007048196,-1981.88,0.00060895,120]
[321236543,1712007048206,-500.0,0.00060895,120]
[321236544,1712007048215,-500.0,0.00060895,120]
[321236545,1712007048225,-476.84,0.00060895,120]
[321236546,1712007048235,-500.0,0.00060895,120]
[321236547,1712007048246,-757.56,0.00060895,120]
[321236548,1712007048255,-500.0,0.00060895,120]
[321236549,1712007048264,-611.37,0.00060895,120]
[321236550,1712007048273,-516.18,0.00060895,120]
[321236551,1712007048283,-500.0,0.00060895,120]
[321236552,1712007048292,-500.66,0.00060895,120]
[321236553,1712007048302,-609.0,0.00060895,120]
[321236554,1712007048311,-500.0,0.00060895,120]
[321236555,1712007048320,-511.68,0.00060895,120]
[321236556,1712007048329,-242.58,0.00060895,120]
[321236557,1712007048339,-500.0,0.00060895,120]
[321236558,1712007048348,-500.0,0.00060895,120]
[321236559,1712007048358,-1241.58,0.00060895,120]
[321236560,1712007048368,-500.0,0.00060895,120]
[321236561,1712007048377,-79394.0995,0.000609,2]
[321236562,1712007048386,-100000.0,0.000609,2]
[321236563,1712007048396,-480.0,0.000609,50]
[321236564,1712007048405,-39869.9327,0.000609,2]
[321236565,1712007048414,-464.0,0.000609,40]
[321236566,1712007048424,-150.0,0.000609,30]
[321236567,1712007048433,-150.0,0.00060901,30]
[321236568,1712007048442,-150.0,0.00060903,30]
[321236569,1712007048451,-150.0,0.00060903,30]
[321236570,1712007048460,-150.0,0.00060911,30]
[321236571,1712007048470,-150.0,0.00060912,30]
[321236572,1712007048479,-150.0,0.00060912,30]
[321236573,1712007048489,-150.0,0.0006092,30]
[321236574,1712007048500,-1000.0,0.0006092,30]
[321236575,1712007048509,-150.0,0.00060921,30]
[321236576,1712007048519,-1500.0,0.00060944,30]
[321236577,1712007048528,-150.0,0.00060948,30]
[321236578,1712007048538,-151.0,0.0006095,88]
[321236579,1712007048548,-737.0,0.0006097,15]
[321236580,1712007048558,-1500.0,0.00060973,30]
[321236581,1712007048568,-737.0,0.0006098,15]
[321236582,1712007048577,-150.0,0.00060986,30]
[321236583,1712007048591,-152.166961,0.00060989,30]
[321236584,1712007048648,-5000.0,0.0006099,120]
[321236585,1712007048658,-737.0,0.0006099,15]
[321236586,1712007048668,-403.26177566,0.00060996,2]
[321236587,1712007048678,-106337.8374064,0.00060997,2]
[321236588,1712007048687,-10224.9236247,0.00060997,2]
[321236589,1712007048696,-24659.3912996,0.00060997,2]
[321236590,1712007048706,-21823.5805179,0.00060997,2]
[321236591,1712007048715,-367.71483418,0.00060998,7]
[321236592,1712007048724,-1296.38126856,0.00060998,7]
[321236593,1712007048734,-102510.28672376,0.00060999,36]
[321236594,1712007048744,-8976.38618217,0.00060999,2]
[321236595,1712007048752,-237.50769212,0.00060999,120]
[321236596,1712007048762,-26970.9397444,0.00060999,120]
[321236597,1712007048771,-129167.59587319,0.00061,120]
[321236598,1712007048781,-80525.00397918,0.00061,60]
[321236599,1712007048791,-600.0,0.00061,62]
[321236600,1712007048801,-348.0,0.00061,115]
[321236601,1712007048810,-2000.0,0.00061,30]
[321236602,1712007048820,-200.0,0.00061,30]
[321236603,1712007048830,-2330.45143308,0.00061,30]
[321236604,1712007048839,-52582.58,0.00061,120]
[321236605,1712007048848,-1000.0,0.00061,7]
[321236606,1712007048858,-834.13599,0.00061,101]
[321236607,1712007048867,-579.5,0.00061,30]
[321236608,1712007048977,-162.07,0.00061012,120]
[321236609,1712007048987,-1000.0,0.00061039,7]
[321236610,1712007048997,-1000.0,0.00061039,7]
[321236611,1712007049006,-1000.0,0.00061039,7]
[321236612,1712007049015,-608.0,0.00061039,7]
[321236613,1712007049024,-153.64349601,0.00061086,120]
[321236614,1712007049033,-500.0,0.0006112,90]
[321236615,1712007049042,-500.0,0.0006112,90]
[321236616,1712007049051,-500.0,0.0006112,90]
[321236617,1712007049060,-500.0,0.0006112,90]
[321236618,1712007049069,-500.0,0.0006112,90]
[321236619,1712007049079,-800.29199,0.00061164,120]
[321236620,1712007049093,-500.0,0.00061168,120]
[321236621,1712007049106,-680.46,0.00061168,120]
[321236622,1712007049115,-599.81,0.00061168,120]
[321236623,1712007049125,-519.19,0.00061168,120]
[321236624,1712007049134,-601.57,0.00061168,120]
[321236625,1712007049143,-513.33,0.00061168,120]
[321236626,1712007049151,-596.47,0.00061168,120]
[321236627,1712007049162,-500.0,0.00061168,120]
[321236628,1712007049173,-3391.36,0.00061168,120]
[321236629,1712007049182,-1369.95,0.00061168,120]
[321236630,1712007049191,-500.0,0.00061168,120]
[321236631,1712007049200,-687.98,0.00061168,120]
[321236632,1712007049209,-1071.64,0.00061168,120]
[321236633,1712007049219,-500.0,0.00061168,120]
[321236634,1712007049228,-1065.74,0.00061168,120]
[321236635,1712007049237,-500.0,0.00061168,120]
[321236636,1712007049247,-500.0,0.00061168,120]
[321236637,1712007049256,-1349.08,0.00061168,120]
[321236638,1712007049266,-500.0,0.00061168,120]
[321236639,1712007049275,-500.0,0.00061168,120]
[321236640,1712007049285,-748.08,0.00061168,120]
[321236641,1712007049295,-306.18,0.00061168,120]
[321236642,1712007049304,-711.74,0.00061168,120]
[321236643,1712007049313,-500.0,0.00061168,120]
[321236644,1712007049323,-500.0,0.00061168,120]
[321236645,1712007049333,-500.0,0.00061168,120]